[Event "*** Titled Tuesday Blitz"]
[Site "Chess.com"]
[Date "2021.03.09"]
[Round "4"]
[White "woodhy"]
[Black "lindsay790"]
[Result "1-0"]
[WhiteElo "2451"]
[BlackElo "2187"]
[TimeControl "180+1"]
[EndTime "10:40:59 PST"]
[Termination "woodhy won on time"]

1. e4 {[%clk 0:03:00.9]} 1... c5 {[%clk 0:02:59.2]} 2. Nf3 {[%clk 0:03:00.4]}
2... d6 {[%clk 0:02:58.5]} 3. d4 {[%clk 0:03:00.9]} 3... cxd4 {[%clk 0:02:58.8]}
4. Nxd4 {[%clk 0:03:01.8]} 4... Nf6 {[%clk 0:02:58.7]} 5. f3 {[%clk 0:03:02.2]}
5... g6 {[%clk 0:02:58.5]} 6. c4 {[%clk 0:03:02]} 6... Bg7 {[%clk 0:02:57.6]} 7.
Nc3 {[%clk 0:03:02.7]} 7... a6 {[%clk 0:02:58]} 8. Be3 {[%clk 0:03:02.9]} 8...
O-O {[%clk 0:02:55.3]} 9. Be2 {[%clk 0:03:02.7]} 9... Qc7 {[%clk 0:02:55.4]} 10.
O-O {[%clk 0:03:02.7]} 10... Nbd7 {[%clk 0:02:52]} 11. Rc1 {[%clk 0:03:03.1]}
11... e5 {[%clk 0:02:42.6]} 12. Nc2 {[%clk 0:02:58.7]} 12... b6 {[%clk
0:02:37.6]} 13. Nb4 {[%clk 0:02:58.1]} 13... Bb7 {[%clk 0:02:35.5]} 14. Nbd5
{[%clk 0:02:56.7]} 14... Qd8 {[%clk 0:02:27]} 15. Qd2 {[%clk 0:02:51.5]} 15...
Nh5 {[%clk 0:02:20.4]} 16. Rfd1 {[%clk 0:02:48.4]} 16... f5 {[%clk 0:02:05.7]}
17. Bg5 {[%clk 0:02:30.8]} 17... Nhf6 {[%clk 0:01:47.3]} 18. Nxf6+ {[%clk
0:02:27.7]} 18... Bxf6 {[%clk 0:01:47]} 19. Bh6 {[%clk 0:02:27.7]} 19... Be7
{[%clk 0:01:36.7]} 20. Bxf8 {[%clk 0:02:26.2]} 20... Nxf8 {[%clk 0:01:21.8]} 21.
Rc2 {[%clk 0:02:15.8]} 21... Ne6 {[%clk 0:01:20.3]} 22. Nd5 {[%clk 0:02:14.8]}
22... Nd4 {[%clk 0:01:17.7]} 23. Qc3 {[%clk 0:02:07.9]} 23... Bg5 {[%clk
0:01:06.3]} 24. Rxd4 {[%clk 0:02:05.5]} 24... exd4 {[%clk 0:01:04.6]} 25. Qxd4
{[%clk 0:02:06.4]} 25... fxe4 {[%clk 0:00:55.7]} 26. f4 {[%clk 0:01:53.2]} 26...
Bh6 {[%clk 0:00:37.6]} 27. Qxe4 {[%clk 0:01:33.3]} 27... Bxd5 {[%clk 0:00:14.5]}
28. Qxd5+ {[%clk 0:01:34.2]} 28... Kh8 {[%clk 0:00:14.7]} 29. Bf3 {[%clk
0:01:33.3]} 29... Rc8 {[%clk 0:00:12.8]} 30. g3 {[%clk 0:01:32.6]} 30... Bg7
{[%clk 0:00:12.4]} 31. b3 {[%clk 0:01:29.5]} 31... Rc5 {[%clk 0:00:12.1]} 32.
Qd3 {[%clk 0:01:29.4]} 32... Qe7 {[%clk 0:00:11.8]} 33. Rd2 {[%clk 0:01:28.1]}
33... Bf8 {[%clk 0:00:06.6]} 34. Kg2 {[%clk 0:01:27.2]} 34... b5 {[%clk
0:00:05.8]} 35. Re2 {[%clk 0:01:24]} 35... Qd7 {[%clk 0:00:04.2]} 36. cxb5
{[%clk 0:01:16.6]} 36... axb5 {[%clk 0:00:04]} 37. Rd2 {[%clk 0:01:16.3]} 37...
Qc7 {[%clk 0:00:02.8]} 38. Bd5 {[%clk 0:01:13.4]} 38... Rc3 {[%clk 0:00:01.2]}
39. Qe4 {[%clk 0:01:13.5]} 1-0

[Event "*** Titled Tuesday Blitz"]
[Site "Chess.com"]
[Date "2021.03.09"]
[Round "4"]
[White "FairChess_on_YouTube"]
[Black "Aleksey_Sorokin"]
[Result "1-0"]
[WhiteElo "2971"]
[BlackElo "2777"]
[TimeControl "180+1"]
[EndTime "10:41:00 PST"]
[Termination "FairChess_on_YouTube won on time"]

1. Nf3 {[%clk 0:03:00.9]} 1... Nf6 {[%clk 0:02:47.3]} 2. c4 {[%clk 0:03:00.9]}
2... g6 {[%clk 0:02:45.9]} 3. Nc3 {[%clk 0:02:58.7]} 3... d5 {[%clk 0:02:46.2]}
4. cxd5 {[%clk 0:02:56.1]} 4... Nxd5 {[%clk 0:02:47.1]} 5. e4 {[%clk 0:02:43.4]}
5... Nxc3 {[%clk 0:02:44.4]} 6. bxc3 {[%clk 0:02:44.3]} 6... Bg7 {[%clk
0:02:35.6]} 7. Be2 {[%clk 0:02:39.8]} 7... c5 {[%clk 0:02:32.8]} 8. d4 {[%clk
0:02:39.5]} 8... Nc6 {[%clk 0:02:18.9]} 9. d5 {[%clk 0:02:38.8]} 9... Bxc3+
{[%clk 0:02:17.9]} 10. Bd2 {[%clk 0:02:39]} 10... Bxa1 {[%clk 0:02:18.1]} 11.
Qxa1 {[%clk 0:02:39.9]} 11... Nd4 {[%clk 0:02:18.3]} 12. Nxd4 {[%clk 0:02:40.1]}
12... cxd4 {[%clk 0:02:19.2]} 13. Qxd4 {[%clk 0:02:40]} 13... f6 {[%clk
0:02:16.7]} 14. e5 {[%clk 0:02:29.5]} 14... Qb6 {[%clk 0:02:11.2]} 15. Qa1
{[%clk 0:01:54.7]} 15... fxe5 {[%clk 0:02:10.2]} 16. O-O {[%clk 0:01:52.7]}
16... O-O {[%clk 0:02:02]} 17. Qxe5 {[%clk 0:01:50]} 17... Qd6 {[%clk
0:01:54.5]} 18. Qe4 {[%clk 0:01:37.4]} 18... Bf5 {[%clk 0:01:49.2]} 19. Qh4
{[%clk 0:01:37.4]} 19... Rac8 {[%clk 0:01:39.3]} 20. Bb4 {[%clk 0:01:34.4]}
20... Qxd5 {[%clk 0:01:34.8]} 21. Bxe7 {[%clk 0:01:29.2]} 21... Rf7 {[%clk
0:01:17.6]} 22. Bf3 {[%clk 0:01:22.6]} 22... Qxa2 {[%clk 0:01:12.5]} 23. Bf6
{[%clk 0:01:12.4]} 23... Bd3 {[%clk 0:00:58.7]} 24. Ba1 {[%clk 0:00:41.2]} 24...
Qc4 {[%clk 0:00:26.9]} 25. Qg5 {[%clk 0:00:41.3]} 25... Qc5 {[%clk 0:00:16.4]}
26. Bd5 {[%clk 0:00:35.1]} 26... Bxf1 {[%clk 0:00:07.6]} 27. Qf6 {[%clk
0:00:34.6]} 1-0

[Event "*** Titled Tuesday Blitz"]
[Site "Chess.com"]
[Date "2021.03.09"]
[Round "4"]
[White "CSB7"]
[Black "kuba2006"]
[Result "1-0"]
[WhiteElo "2594"]
[BlackElo "2344"]
[TimeControl "180+1"]
[EndTime "10:41:00 PST"]
[Termination "CSB7 won on time"]

1. e4 {[%clk 0:03:00.9]} 1... Nf6 {[%clk 0:03:00.9]} 2. Nc3 {[%clk 0:02:57.8]}
2... e5 {[%clk 0:03:00.5]} 3. Nf3 {[%clk 0:02:55.9]} 3... Nc6 {[%clk 0:02:59.7]}
4. d4 {[%clk 0:02:53.5]} 4... exd4 {[%clk 0:02:59]} 5. Nxd4 {[%clk 0:02:54.4]}
5... Bb4 {[%clk 0:02:58.4]} 6. Nxc6 {[%clk 0:02:54.2]} 6... bxc6 {[%clk
0:02:59.3]} 7. Bd3 {[%clk 0:02:54.4]} 7... d5 {[%clk 0:02:59]} 8. exd5 {[%clk
0:02:54.2]} 8... cxd5 {[%clk 0:02:59.9]} 9. O-O {[%clk 0:02:54.1]} 9... O-O
{[%clk 0:03:00.3]} 10. h3 {[%clk 0:02:54.2]} 10... h6 {[%clk 0:02:54.4]} 11. Qf3
{[%clk 0:02:54]} 11... c6 {[%clk 0:02:53.5]} 12. Bf4 {[%clk 0:02:53.7]} 12...
Bd6 {[%clk 0:02:52.4]} 13. Rfe1 {[%clk 0:02:51.5]} 13... Rb8 {[%clk 0:02:51.6]}
14. b3 {[%clk 0:02:48.5]} 14... Be6 {[%clk 0:02:51.3]} 15. Ne2 {[%clk
0:02:47.8]} 15... c5 {[%clk 0:02:49.5]} 16. Rad1 {[%clk 0:02:31.8]} 16... a5
{[%clk 0:02:39.8]} 17. Ng3 {[%clk 0:02:29.4]} 17... Bxf4 {[%clk 0:02:22.9]} 18.
Qxf4 {[%clk 0:02:30.3]} 18... Rb4 {[%clk 0:02:22.7]} 19. Qd2 {[%clk 0:02:17.7]}
19... Qc7 {[%clk 0:01:38.7]} 20. Bf5 {[%clk 0:01:55.7]} 20... Bxf5 {[%clk
0:01:31.1]} 21. Nxf5 {[%clk 0:01:55.4]} 21... a4 {[%clk 0:01:30.8]} 22. Ne7+
{[%clk 0:01:36.4]} 22... Kh8 {[%clk 0:01:27.8]} 23. Nxd5 {[%clk 0:01:36.7]}
23... Nxd5 {[%clk 0:01:23.4]} 24. Qxd5 {[%clk 0:01:37.6]} 24... axb3 {[%clk
0:01:22.1]} 25. axb3 {[%clk 0:01:34.3]} 25... c4 {[%clk 0:01:19.8]} 26. Rd4
{[%clk 0:01:22.4]} 26... Rc8 {[%clk 0:00:38.1]} 27. bxc4 {[%clk 0:01:21.1]}
27... Rb2 {[%clk 0:00:10.4]} 28. Rde4 {[%clk 0:01:03.2]} 28... Kh7 {[%clk
0:00:04.1]} 29. Re7 {[%clk 0:00:52.2]} 29... Qxc4 {[%clk 0:00:04]} 30. Qf5+
{[%clk 0:00:49.4]} 30... Kh8 {[%clk 0:00:04.2]} 31. Re8+ {[%clk 0:00:49.2]} 1-0

[Event "*** Titled Tuesday Blitz"]
[Site "Chess.com"]
[Date "2021.03.09"]
[Round "4"]
[White "stoleriu"]
[Black "Eltaj_Safarli"]
[Result "0-1"]
[WhiteElo "2605"]
[BlackElo "2899"]
[TimeControl "180+1"]
[EndTime "10:41:02 PST"]
[Termination "Eltaj_Safarli won by resignation"]

1. e4 {[%clk 0:03:00.9]} 1... c5 {[%clk 0:02:59.5]} 2. Nf3 {[%clk 0:02:59.7]}
2... Nc6 {[%clk 0:02:58.5]} 3. Bb5 {[%clk 0:02:59.7]} 3... d6 {[%clk 0:02:57.6]}
4. O-O {[%clk 0:02:52.4]} 4... Bd7 {[%clk 0:02:55.2]} 5. Re1 {[%clk 0:02:51.8]}
5... Nf6 {[%clk 0:02:53.6]} 6. c3 {[%clk 0:02:51.8]} 6... a6 {[%clk 0:02:48.1]}
7. Bc4 {[%clk 0:02:51.8]} 7... Bg4 {[%clk 0:02:42.5]} 8. d4 {[%clk 0:02:48.1]}
8... e6 {[%clk 0:02:38.6]} 9. Be3 {[%clk 0:01:31.7]} 9... d5 {[%clk 0:02:21.8]}
10. exd5 {[%clk 0:01:30]} 10... Nxd5 {[%clk 0:02:22.7]} 11. h3 {[%clk
0:01:17.6]} 11... Bh5 {[%clk 0:02:22.1]} 12. Nbd2 {[%clk 0:01:00.3]} 12... Be7
{[%clk 0:02:19.1]} 13. Qb3 {[%clk 0:00:56.4]} 13... Na5 {[%clk 0:02:15.2]} 14.
Qd1 {[%clk 0:00:37]} 14... Nxc4 {[%clk 0:02:13.5]} 15. Nxc4 {[%clk 0:00:37.9]}
15... O-O {[%clk 0:02:13.1]} 16. Nce5 {[%clk 0:00:36.7]} 16... f6 {[%clk
0:02:04.9]} 17. Ng4 {[%clk 0:00:35.6]} 17... cxd4 {[%clk 0:02:00.1]} 18. Qxd4
{[%clk 0:00:29.4]} 18... e5 {[%clk 0:01:58.3]} 19. Qc4 {[%clk 0:00:26.3]} 19...
b5 {[%clk 0:01:54.9]} 20. Qb3 {[%clk 0:00:24.9]} 20... Bf7 {[%clk 0:01:55.1]}
21. Qc2 {[%clk 0:00:24.2]} 21... Rc8 {[%clk 0:01:52.6]} 22. Rad1 {[%clk
0:00:24.7]} 22... Qc7 {[%clk 0:01:52.6]} 23. a4 {[%clk 0:00:23.1]} 23... b4
{[%clk 0:01:50.8]} 24. Qd3 {[%clk 0:00:15.3]} 24... bxc3 {[%clk 0:01:50]} 25.
bxc3 {[%clk 0:00:16.2]} 25... Qc4 {[%clk 0:01:47.9]} 26. Qxc4 {[%clk 0:00:12.8]}
26... Rxc4 {[%clk 0:01:48.8]} 27. Ngxe5 {[%clk 0:00:13.4]} 27... fxe5 {[%clk
0:01:46.3]} 28. Nxe5 {[%clk 0:00:14.3]} 28... Rxc3 {[%clk 0:01:35.5]} 29. Bd4
{[%clk 0:00:06.5]} 29... Rc7 {[%clk 0:01:32]} 30. Nxf7 {[%clk 0:00:04.3]} 30...
Rxf7 {[%clk 0:01:32.9]} 31. Be5 {[%clk 0:00:04.9]} 31... Rd7 {[%clk 0:01:32.9]}
32. Rb1 {[%clk 0:00:05.5]} 32... h6 {[%clk 0:01:28.8]} 33. Red1 {[%clk
0:00:05.9]} 33... Bf6 {[%clk 0:01:26.8]} 34. Bg3 {[%clk 0:00:03.3]} 34... Nc3
{[%clk 0:01:26.4]} 35. Rxd7 {[%clk 0:00:03.8]} 35... Rxd7 {[%clk 0:01:27.3]} 36.
Rb8+ {[%clk 0:00:03.4]} 36... Kf7 {[%clk 0:01:27]} 37. Ra8 {[%clk 0:00:04]}
37... Nxa4 {[%clk 0:01:26.3]} 38. Rxa6 {[%clk 0:00:04]} 38... Nc5 {[%clk
0:01:26.8]} 39. Ra2 {[%clk 0:00:04.1]} 39... Ne4 {[%clk 0:01:27]} 40. Kh2 {[%clk
0:00:05]} 40... Nxg3 {[%clk 0:01:27]} 41. Kxg3 {[%clk 0:00:05.9]} 41... Rd3+
{[%clk 0:01:27.2]} 42. f3 {[%clk 0:00:06.5]} 42... h5 {[%clk 0:01:28]} 43. Ra5
{[%clk 0:00:05.6]} 43... Rd4 {[%clk 0:01:27.9]} 44. Rxh5 {[%clk 0:00:04.1]}
44... g5 {[%clk 0:01:27.6]} 45. Rh7+ {[%clk 0:00:03.9]} 45... Bg7 {[%clk
0:01:27.2]} 46. Rh5 {[%clk 0:00:01.6]} 46... Kg6 {[%clk 0:01:27.1]} 47. Rxg5+
{[%clk 0:00:01.4]} 47... Kxg5 {[%clk 0:01:27.4]} 0-1

[Event "*** Titled Tuesday Blitz"]
[Site "Chess.com"]
[Date "2021.03.09"]
[Round "4"]
[White "TST2014"]
[Black "Hongjin"]
[Result "0-1"]
[WhiteElo "2617"]
[BlackElo "2497"]
[TimeControl "180+1"]
[EndTime "10:41:06 PST"]
[Termination "Hongjin won by checkmate"]

1. d4 {[%clk 0:03:00.9]} 1... e6 {[%clk 0:02:59.9]} 2. Nf3 {[%clk 0:02:59.5]}
2... d5 {[%clk 0:02:59.4]} 3. c4 {[%clk 0:02:59.2]} 3... Nf6 {[%clk 0:02:59.9]}
4. Nc3 {[%clk 0:02:58.7]} 4... Be7 {[%clk 0:02:57.6]} 5. Bf4 {[%clk 0:02:58.1]}
5... O-O {[%clk 0:02:57.5]} 6. e3 {[%clk 0:02:57.9]} 6... Nbd7 {[%clk
0:02:57.9]} 7. c5 {[%clk 0:02:57.2]} 7... b6 {[%clk 0:02:55.7]} 8. c6 {[%clk
0:02:45.6]} 8... Nb8 {[%clk 0:02:55.6]} 9. Bb5 {[%clk 0:02:44]} 9... Nh5 {[%clk
0:02:55]} 10. Be5 {[%clk 0:02:40.7]} 10... f6 {[%clk 0:02:54.6]} 11. Bg3 {[%clk
0:02:38.2]} 11... Nxg3 {[%clk 0:02:54.7]} 12. hxg3 {[%clk 0:02:38.3]} 12... Qe8
{[%clk 0:02:55.5]} 13. Qa4 {[%clk 0:02:36.9]} 13... Bd6 {[%clk 0:02:49.2]} 14.
b4 {[%clk 0:02:22.5]} 14... a6 {[%clk 0:02:46.5]} 15. Bd3 {[%clk 0:02:22.3]}
15... Qxc6 {[%clk 0:02:40.4]} 16. Bxh7+ {[%clk 0:02:19.4]} 16... Kf7 {[%clk
0:02:40]} 17. Qc2 {[%clk 0:02:17.7]} 17... Bxb4 {[%clk 0:02:37.1]} 18. Rc1
{[%clk 0:01:56.7]} 18... Qxc3+ {[%clk 0:02:33]} 19. Qxc3 {[%clk 0:01:56.5]}
19... Bxc3+ {[%clk 0:02:33.9]} 20. Rxc3 {[%clk 0:01:57.1]} 20... c6 {[%clk
0:02:31.7]} 21. g4 {[%clk 0:01:54.5]} 21... Bb7 {[%clk 0:02:29]} 22. g5 {[%clk
0:01:54.7]} 22... Nd7 {[%clk 0:02:28.8]} 23. gxf6 {[%clk 0:01:49.1]} 23... gxf6
{[%clk 0:02:29.7]} 24. Bd3 {[%clk 0:01:48.5]} 24... Rh8 {[%clk 0:02:24.9]} 25.
Rxh8 {[%clk 0:01:38.5]} 25... Rxh8 {[%clk 0:02:24.7]} 26. a4 {[%clk 0:01:37.3]}
26... c5 {[%clk 0:02:23.6]} 27. dxc5 {[%clk 0:01:23.5]} 27... bxc5 {[%clk
0:02:23.7]} 28. Rb3 {[%clk 0:01:23.1]} 28... Bc6 {[%clk 0:02:22.4]} 29. Bxa6
{[%clk 0:01:21.2]} 29... c4 {[%clk 0:02:03.5]} 30. Rc3 {[%clk 0:00:53.1]} 30...
Nc5 {[%clk 0:01:58.2]} 31. Bb5 {[%clk 0:00:51.8]} 31... Bxb5 {[%clk 0:01:53.8]}
32. axb5 {[%clk 0:00:51.7]} 32... Rb8 {[%clk 0:01:40.3]} 33. Nd4 {[%clk
0:00:50.9]} 33... e5 {[%clk 0:01:39.7]} 34. Nf5 {[%clk 0:00:45.5]} 34... Ke6
{[%clk 0:01:40]} 35. Ng7+ {[%clk 0:00:42.2]} 35... Kd7 {[%clk 0:01:40.1]} 36.
Nh5 {[%clk 0:00:37.9]} 36... Ke7 {[%clk 0:01:37.3]} 37. Ra3 {[%clk 0:00:34.2]}
37... Rxb5 {[%clk 0:01:34.3]} 38. Ra7+ {[%clk 0:00:34.1]} 38... Ke6 {[%clk
0:01:31.6]} 39. Ng7+ {[%clk 0:00:28.8]} 39... Kd6 {[%clk 0:01:32]} 40. Ne8+
{[%clk 0:00:23.1]} 40... Kc6 {[%clk 0:01:32.3]} 41. Nxf6 {[%clk 0:00:22.5]}
41... d4 {[%clk 0:01:30.6]} 42. exd4 {[%clk 0:00:20]} 42... exd4 {[%clk
0:01:31.5]} 43. g4 {[%clk 0:00:16.4]} 43... Rb1+ {[%clk 0:01:29.5]} 44. Ke2
{[%clk 0:00:15.1]} 44... c3 {[%clk 0:01:26.7]} 45. Ra2 {[%clk 0:00:07.1]} 45...
d3+ {[%clk 0:01:26.4]} 46. Ke3 {[%clk 0:00:07.7]} 46... c2 {[%clk 0:01:24.4]}
47. g5 {[%clk 0:00:03.8]} 47... c1=Q+ {[%clk 0:01:24.4]} 48. Kd4 {[%clk
0:00:04.4]} 48... Rb4+ {[%clk 0:01:23.7]} 49. Ke5 {[%clk 0:00:04.5]} 49... Qxg5#
{[%clk 0:01:23.7]} 0-1

[Event "*** Titled Tuesday Blitz"]
[Site "Chess.com"]
[Date "2021.03.09"]
[Round "4"]
[White "chessdjw"]
[Black "ChessWarrior7197"]
[Result "0-1"]
[WhiteElo "2737"]
[BlackElo "2923"]
[TimeControl "180+1"]
[EndTime "10:41:11 PST"]
[Termination "ChessWarrior7197 won on time"]

1. d4 {[%clk 0:03:00.9]} 1... d5 {[%clk 0:02:59.8]} 2. c4 {[%clk 0:03:01.2]}
2... e6 {[%clk 0:02:59.8]} 3. Nf3 {[%clk 0:03:00]} 3... Nf6 {[%clk 0:03:00]} 4.
g3 {[%clk 0:03:00.7]} 4... dxc4 {[%clk 0:02:56.8]} 5. Bg2 {[%clk 0:03:01]} 5...
c5 {[%clk 0:02:56.6]} 6. O-O {[%clk 0:03:00.7]} 6... Nc6 {[%clk 0:02:56.4]} 7.
dxc5 {[%clk 0:03:01.2]} 7... Qxd1 {[%clk 0:02:57.3]} 8. Rxd1 {[%clk 0:03:01.6]}
8... Bxc5 {[%clk 0:02:58.2]} 9. Nbd2 {[%clk 0:03:02.3]} 9... c3 {[%clk
0:02:58.8]} 10. bxc3 {[%clk 0:03:03.2]} 10... O-O {[%clk 0:02:59]} 11. Nb3
{[%clk 0:03:02.9]} 11... Be7 {[%clk 0:02:59.6]} 12. c4 {[%clk 0:03:03.5]} 12...
Bd7 {[%clk 0:02:59.5]} 13. Bb2 {[%clk 0:02:59.9]} 13... Rfd8 {[%clk 0:02:59.2]}
14. Nfd4 {[%clk 0:02:58.8]} 14... Rac8 {[%clk 0:02:59.6]} 15. Nb5 {[%clk
0:02:59.2]} 15... b6 {[%clk 0:03:00]} 16. Nd6 {[%clk 0:02:59.7]} 16... Rc7
{[%clk 0:02:59.5]} 17. Rac1 {[%clk 0:02:35.2]} 17... Nb4 {[%clk 0:02:33.7]} 18.
Nb5 {[%clk 0:01:42.2]} 18... Bxb5 {[%clk 0:02:32.9]} 19. cxb5 {[%clk 0:01:43.1]}
19... Rxd1+ {[%clk 0:02:30.9]} 20. Rxd1 {[%clk 0:01:42.3]} 20... Kf8 {[%clk
0:01:57.7]} 21. Be5 {[%clk 0:01:15.9]} 21... Rd7 {[%clk 0:01:51.1]} 22. Rc1
{[%clk 0:00:50.2]} 22... Nxa2 {[%clk 0:01:50.6]} 23. Rc8+ {[%clk 0:00:47.7]}
23... Rd8 {[%clk 0:01:51]} 24. Rc7 {[%clk 0:00:33.2]} 24... Bd6 {[%clk
0:01:51.2]} 25. Bxf6 {[%clk 0:00:20.1]} 25... Bxc7 {[%clk 0:01:51.1]} 26. Bxd8
{[%clk 0:00:20]} 26... Bxd8 {[%clk 0:01:52]} 27. Nd4 {[%clk 0:00:17.4]} 27...
Nc3 {[%clk 0:01:50.8]} 28. e3 {[%clk 0:00:14.5]} 28... Bf6 {[%clk 0:01:50]} 29.
Bf1 {[%clk 0:00:05.8]} 29... Bxd4 {[%clk 0:01:49.4]} 30. exd4 {[%clk 0:00:06.1]}
30... Ke7 {[%clk 0:01:49]} 31. Kg2 {[%clk 0:00:06.7]} 31... Kd6 {[%clk 0:01:49]}
32. Bc4 {[%clk 0:00:07.3]} 32... Ne4 {[%clk 0:01:47.1]} 33. f4 {[%clk
0:00:02.9]} 33... g6 {[%clk 0:01:43.7]} 34. h4 {[%clk 0:00:01.6]} 34... h5
{[%clk 0:01:43.7]} 35. Ba2 {[%clk 0:00:01.8]} 35... Ke7 {[%clk 0:01:29.7]} 36.
Kf3 {[%clk 0:00:01.9]} 36... Nd6 {[%clk 0:01:29.3]} 37. Ke3 {[%clk 0:00:02.1]}
37... Nxb5 {[%clk 0:01:29.6]} 38. Kd3 {[%clk 0:00:02]} 38... Nc7 {[%clk
0:01:30]} 39. Bb3 {[%clk 0:00:01.6]} 39... Kd6 {[%clk 0:01:30.9]} 40. Kc4 {[%clk
0:00:02.1]} 40... b5+ {[%clk 0:01:31.1]} 41. Kb4 {[%clk 0:00:02.5]} 41... Kc6
{[%clk 0:01:28.3]} 42. Ka5 {[%clk 0:00:02.9]} 42... Nd5 {[%clk 0:01:28.2]} 43.
Bd1 {[%clk 0:00:03]} 43... Ne3 {[%clk 0:01:25.4]} 44. Bf3+ {[%clk 0:00:03.9]}
44... Kd6 {[%clk 0:01:26.3]} 45. Kxb5 {[%clk 0:00:04.1]} 45... Nf5 {[%clk
0:01:27.2]} 46. Ka6 {[%clk 0:00:03.3]} 46... Nxd4 {[%clk 0:01:27]} 47. Bd1
{[%clk 0:00:03.2]} 47... Nf5 {[%clk 0:01:26.7]} 48. Kxa7 {[%clk 0:00:03.2]}
48... Nxg3 {[%clk 0:01:26.4]} 49. Kb7 {[%clk 0:00:02.8]} 49... Nf5 {[%clk
0:01:26.7]} 50. Kc8 {[%clk 0:00:03.7]} 50... Ke7 {[%clk 0:01:26.9]} 0-1

[Event "*** Titled Tuesday Blitz"]
[Site "Chess.com"]
[Date "2021.03.09"]
[Round "4"]
[White "LionChessClub"]
[Black "drragnar1"]
[Result "1-0"]
[WhiteElo "2613"]
[BlackElo "2429"]
[TimeControl "180+1"]
[EndTime "10:41:11 PST"]
[Termination "LionChessClub won by resignation"]

1. e4 {[%clk 0:03:00.1]} 1... d6 {[%clk 0:02:54.7]} 2. d4 {[%clk 0:02:58.8]}
2... g6 {[%clk 0:02:54.6]} 3. Nc3 {[%clk 0:02:55.8]} 3... Bg7 {[%clk 0:02:53.2]}
4. f4 {[%clk 0:02:56.1]} 4... Nf6 {[%clk 0:02:51.3]} 5. Nf3 {[%clk 0:02:55.4]}
5... O-O {[%clk 0:02:48.7]} 6. Bd3 {[%clk 0:02:55.1]} 6... Nc6 {[%clk
0:02:46.4]} 7. e5 {[%clk 0:02:52]} 7... dxe5 {[%clk 0:02:44.2]} 8. dxe5 {[%clk
0:02:52.9]} 8... Nh5 {[%clk 0:02:24.7]} 9. O-O {[%clk 0:02:51.7]} 9... f6 {[%clk
0:02:14.5]} 10. exf6 {[%clk 0:02:24]} 10... exf6 {[%clk 0:02:01.6]} 11. f5
{[%clk 0:02:24.2]} 11... Bxf5 {[%clk 0:01:07.8]} 12. Bxf5 {[%clk 0:02:23.6]}
12... Qxd1 {[%clk 0:01:07.3]} 13. Be6+ {[%clk 0:02:23.4]} 13... Kh8 {[%clk
0:01:04.5]} 14. Rxd1 {[%clk 0:02:23.6]} 14... f5 {[%clk 0:01:00]} 15. Bb3 {[%clk
0:02:03]} 15... Nf6 {[%clk 0:00:50.7]} 16. Ng5 {[%clk 0:02:01.8]} 16... Nd8
{[%clk 0:00:38.8]} 17. Be3 {[%clk 0:01:57.8]} 17... h6 {[%clk 0:00:35.4]} 18.
Rxd8 {[%clk 0:01:43]} 18... Raxd8 {[%clk 0:00:36.3]} 19. Nf7+ {[%clk 0:01:43.5]}
19... Rxf7 {[%clk 0:00:36.8]} 20. Bxf7 {[%clk 0:01:44.4]} 20... Ng4 {[%clk
0:00:37]} 21. Bf2 {[%clk 0:01:10.8]} 21... Rd2 {[%clk 0:00:31.8]} 22. Be1 {[%clk
0:01:00.3]} 22... Rxc2 {[%clk 0:00:30.5]} 23. h3 {[%clk 0:00:58.2]} 23... Ne3
{[%clk 0:00:27.1]} 24. Bf2 {[%clk 0:00:49.6]} 24... Bd4 {[%clk 0:00:22.3]} 25.
Rb1 {[%clk 0:00:34.5]} 25... Kg7 {[%clk 0:00:19.5]} 26. Bb3 {[%clk 0:00:34.1]}
26... Rd2 {[%clk 0:00:17.5]} 27. Re1 {[%clk 0:00:32.5]} 27... Bxc3 {[%clk
0:00:15.1]} 28. bxc3 {[%clk 0:00:31.9]} 28... Nd5 {[%clk 0:00:12.1]} 29. Bd4+
{[%clk 0:00:31.8]} 29... Rxd4 {[%clk 0:00:07.2]} 30. cxd4 {[%clk 0:00:32.7]} 1-0

[Event "*** Titled Tuesday Blitz"]
[Site "Chess.com"]
[Date "2021.03.09"]
[Round "4"]
[White "SchmakAttack"]
[Black "ajdemipopushi"]
[Result "0-1"]
[WhiteElo "2540"]
[BlackElo "2361"]
[TimeControl "180+1"]
[EndTime "10:41:17 PST"]
[Termination "ajdemipopushi won by checkmate"]

1. e4 {[%clk 0:02:59.7]} 1... c5 {[%clk 0:03:00]} 2. Nf3 {[%clk 0:02:59.8]} 2...
g6 {[%clk 0:03:00.4]} 3. d4 {[%clk 0:03:00.1]} 3... cxd4 {[%clk 0:03:00.8]} 4.
Nxd4 {[%clk 0:03:01]} 4... Bg7 {[%clk 0:03:01.2]} 5. Nc3 {[%clk 0:03:01.6]} 5...
Nc6 {[%clk 0:03:01.6]} 6. Be3 {[%clk 0:03:02.3]} 6... Nf6 {[%clk 0:03:01.6]} 7.
Bc4 {[%clk 0:03:02.9]} 7... O-O {[%clk 0:03:01.1]} 8. Bb3 {[%clk 0:03:03.4]}
8... Ng4 {[%clk 0:03:00.7]} 9. Qxg4 {[%clk 0:03:02.7]} 9... Nxd4 {[%clk
0:03:00.6]} 10. Qd1 {[%clk 0:02:58.2]} 10... Nxb3 {[%clk 0:03:00]} 11. axb3
{[%clk 0:02:57.4]} 11... d6 {[%clk 0:03:00.9]} 12. Qd2 {[%clk 0:02:33.7]} 12...
Be6 {[%clk 0:02:52.4]} 13. Bh6 {[%clk 0:02:27.9]} 13... Bxh6 {[%clk 0:02:47.8]}
14. Qxh6 {[%clk 0:02:27.3]} 14... Qc7 {[%clk 0:02:48.3]} 15. h4 {[%clk
0:02:21.5]} 15... f6 {[%clk 0:02:48.2]} 16. f4 {[%clk 0:02:04.8]} 16... Qc5
{[%clk 0:02:45.9]} 17. O-O-O {[%clk 0:02:04.6]} 17... a5 {[%clk 0:02:09.9]} 18.
f5 {[%clk 0:01:55]} 18... Bf7 {[%clk 0:02:04.9]} 19. fxg6 {[%clk 0:01:41.2]}
19... hxg6 {[%clk 0:02:04.2]} 20. Rh3 {[%clk 0:01:39.1]} 20... Rfc8 {[%clk
0:01:43.8]} 21. Rg3 {[%clk 0:01:32.7]} 21... a4 {[%clk 0:01:39]} 22. Rxg6+
{[%clk 0:00:29]} 22... Bxg6 {[%clk 0:01:38.1]} 23. Qxg6+ {[%clk 0:00:29.9]}
23... Kf8 {[%clk 0:01:38.4]} 24. Rd5 {[%clk 0:00:23.4]} 24... Qe3+ {[%clk
0:01:23]} 25. Kb1 {[%clk 0:00:21.7]} 25... axb3 {[%clk 0:01:14.6]} 26. cxb3
{[%clk 0:00:19.2]} 26... Rxc3 {[%clk 0:00:37.9]} 27. bxc3 {[%clk 0:00:19.3]}
27... Qe1+ {[%clk 0:00:37]} 28. Kb2 {[%clk 0:00:16.5]} 28... Qa1+ {[%clk
0:00:35]} 29. Kc2 {[%clk 0:00:16.7]} 29... Ra2+ {[%clk 0:00:34.6]} 30. Kd3
{[%clk 0:00:17.3]} 30... Qf1+ {[%clk 0:00:30.2]} 31. Kd4 {[%clk 0:00:08.5]}
31... Rd2+ {[%clk 0:00:29.9]} 32. Ke3 {[%clk 0:00:08.8]} 32... Qf2# {[%clk
0:00:29]} 0-1